Cogmind - Beta 15 @@@ ROGUE MODE // 2025.06.03 @ 13:54:16 Player: Fleshy Vegetable Bird Result: Destroyed by 8Z-85D(R) with Subdweller Machine Gun Performance ------------- Evolutions (0) 0 Regions Visited (2) 400 Robots Destroyed (25) 125 Value Destroyed (516) 516 Prototype IDs (0) 0 Alien Tech Used (0) 0 Bonus (0) 0 TOTAL SCORE: 1041 Bonus ------- None Cogmind --------- Core Integrity 0/250 Matter 231/300 Energy 198/200 System Corruption 0% Temperature Cool (0) Movement Rolling (130) Ox2 Location -10/Subcaves Parts ------- > --- POWER (1) -------- Subdweller Power Source > --- PROPULSION (2) --- Subdweller Monowheel Subdweller Monowheel > --- UTILITY (2) ------ Huge Storage Unit Structural Scanner > --- WEAPON (2) ------- Small Laser > --- INVENTORY (25) --- Subdweller Power Source Subdweller Power Source Improved Heat Sink Huge Storage Unit High-capacity Matter Pod (200) Subdweller Optics Subdweller Optics Subdweller Optics Improved Terrain Scanner Seismic Detector Seismic Detector Subdweller Beam Cannon Subdweller Machine Gun Mining Laser Peak State ------------ > --- POWER ------------ Subdweller Power Source > --- PROPULSION ------- Subdweller Monowheel Subdweller Monowheel > --- UTILITY ---------- Huge Storage Unit Structural Scanner > --- WEAPON ----------- Small Laser Subdweller Machine Gun > --- INVENTORY -------- Subdweller Power Source Subdweller Power Source Subdweller Monowheel Improved Heat Sink Huge Storage Unit High-capacity Matter Pod Subdweller Optics Subdweller Optics Subdweller Optics Improved Terrain Scanner Seismic Detector Seismic Detector Subdweller Beam Cannon Subdweller Machine Gun Mining Laser [Rating: 13] Favorites ----------- Power Light Ion Engine Engine Light Ion Engine Propulsion Wheel Wheel Wheel Utility Huge Storage Unit Device Structural Scanner Storage Huge Storage Unit Protection Light Armor Plating Weapon Assault Rifle Energy Gun Small Laser Ballistic Gun Assault Rifle Special Weapon Mining Laser Build | -11 -10 -10 ------- Run | Yrd Mat Sub Slots Evolved . | . . . Power . | . . . Propulsion . | . . . Utility . | . . . Weapon . | . . . Parts Attached 30 | 9 9 12 Power 4 | 1 1 2 Engine 4 | 1 1 2 Core . | . . . Reactor . | . . . Propulsion 10 | 3 2 5 Treads . | . . . Leg . | . . . Wheel 10 | 3 2 5 Hover . | . . . Flight . | . . . Utility 6 | 2 3 1 Device 3 | 1 1 1 Storage 2 | 1 1 . Processor . | . . . Hackware . | . . . Protection 1 | . 1 . Artifact . | . . . Weapon 10 | 3 3 4 Energy Gun 2 | . 1 1 Energy Cannon . | . . . Ballistic Gun 7 | 3 2 2 Ballistic Cannon . | . . . Launcher . | . . . Special Weapon 1 | . . 1 Impact Weapon . | . . . Slashing Weapon . | . . . Piercing Weapon . | . . . Special Melee Weapon . | . . . Unidentified Prototypes . | . . . Parts Lost 15 | . 3 12 Power 2 | . . 2 Propulsion 7 | . 2 5 Utility 1 | . 1 . Weapon 5 | . . 5 Highest Loss Streak 4 | . 1 4 To Critical Strikes . | . . . Average Backups 10 | 2 11 11 Power . | . 1 . Propulsion . | . 1 . Utility 6 | . 5 7 Weapon 3 | 1 3 2 Tool/Special . | . . . Unused Backups 13 | . 1 12 Power 2 | . . 2 Propulsion . | . . . Utility 9 | . 1 8 Weapon 2 | . . 2 Tool/Special . | . . . Average Slot Usage (%) 78 | . 95 74 Engine 13 | . 14 13 Wheel 8 | . 27 3 Device 11 | . 3 14 Storage 14 | . 14 14 Protection 1 | . 6 . Energy Gun 1 | . . 1 Ballistic Gun 18 | . 27 16 Special Weapon 8 | . . 10 Peak Build Rating 13 | 7 9 13 Average Rating 7 | 6 7 7 On Entrance 5 | . 7 9 Naked Turns . | . . . Heaviest Build 91 | 12 89 91 Greatest Support 40 | 26 20 40 Greatest Overweight (x) 29 | 3 4 29 Average Overweight (x) 8 | . 3 14 Largest Inventory Capacity 25 | 8 25 25 Average Capacity 24 | 7 24 25 Most Carried 16 | 7 15 16 Average Carried 10 | 3 11 11 Final Capacity 25 | 8 25 25 Final Carried 14 | 7 14 14 Class Distribution -------------------- 95% | Mutant 4% | Scavenger-Mutant Dominant Class ---------------- Mutant | -10/Materials Mutant | -10/Subcaves Resources | -11 -10 -10 ----------- Run | Yrd Mat Sub Matter Collected 1047 | 311 506 230 Remotely . | . . . Salvage Created 873 | 148 518 207 Parts 56 | 14 29 13 Haulers Intercepted 1 | . 1 . Recyclers Shooed 2 | 1 1 . Parts Field Recycled . | . . . Retrieved Matter . | . . . Parts Self-Destructed 12 | . . 12 Prevented . | . . . Kills | -11 -10 -10 ------- Run | Yrd Mat Sub Combat Hostiles Destroyed 13 | . 8 5 Guns 13 | . 8 5 Classes Destroyed 8 | 2 5 1 Worker 2 | . 2 . Tunneler 5 | 4 1 . Hauler 1 | . 1 . Recycler 2 | 1 1 . Watcher 2 | . 2 . Swarmer 3 | . 3 . Grunt 6 | . 5 1 Subdweller 4 | . . 4 Best Kill Streak 4 | 2 4 1 Combat Bots Only 4 | . 4 1 Max Kills in Single Turn 1 | 1 1 1 Gunslinging . | . . . Exploded . | . . . Melee . | . . . Uniques/NPCs Destroyed . | . . . Combat | -11 -10 -10 -------- Run | Yrd Mat Sub Hostile Shots Fired 103 | . 38 65 Missed 26 | . 10 16 Hits 77 | . 28 49 Projectile 77 | . 28 49 AOE 3 | . 1 2 Critical Strikes 2 | . . 2 Damage Taken 1494 | . 388 1106 Core 252 | . 43 209 Absorbed by Shields . | . . . Core Remaining (%) 100 | 100 . . Volleys Fired 125 | 15 47 63 Largest 2 | 2 2 2 Hottest 100 | 40 40 100 Shots Fired 211 | 30 87 94 Gun 194 | 30 87 77 Cannon . | . . . Launcher . | . . . Special 17 | . . 17 Kinetic 164 | 30 80 54 Thermal 35 | . 7 28 Explosive . | . . . Electromagnetic 12 | . . 12 Robot Hit Streak 17 | 4 11 17 Robot Miss Streak 3 | 3 3 3 Penetration Max . | . . . Secondary Targets 2 | . 2 . Max Gunslinging Chain 1 | . 1 . Shots Hit Robots 131 | 15 57 59 Core Hits 43 | 7 26 10 Critical Kills . | . . . Critical Parts Destroyed 1 | . . 1 Critical Strikes 1 | . . 1 Destroy 1 | . . 1 Melee Attacks . | . . . Impact . | . . . Slashing . | . . . Piercing . | . . . Sneak Attacks . | . . . Combat Hostiles . | . . . Follow-up Attacks . | . . . Damage Inflicted 1529 | 157 606 766 Guns 1529 | 157 606 766 Cannons . | . . . Explosions . | . . . Melee . | . . . Ramming . | . . . Kinetic 1362 | 157 559 646 Thermal 135 | . 47 88 Explosive . | . . . Electromagnetic 32 | . . 32 Impact . | . . . Slashing . | . . . Piercing . | . . . Highest Corruption . | . . . Average Corruption . | . . . Corruption Purged . | . . . Corruption Blocked . | . . . Overload Shots . | . . . Overflow Damage . | . . . Projectiles . | . . . Explosions . | . . . Melee . | . . . Knockbacks . | . . . Impact . | . . . Kinetic . | . . . Secondary . | . . . Self-Inflicted Damage . | . . . Shots . | . . . Rammed . | . . . Targets Rammed . | . . . Kicked . | . . . Crushed . | . . . Highest Temperature 36 | . 36 5 Average Temperature 9 | . 9 5 Received Heat Transfer 423 | . 147 276 Siege Activations . | . . . Martial Activations . | . . . Shielding Activations . | . . . Robots Disrupted . | . . . Combat Hostiles . | . . . Robots Corrupted . | . . . Combat Hostiles . | . . . Parts Fried . | . . . Impact Corruptions . | . . . Robots Melted . | . . . Combat Hostiles . | . . . Parts Melted . | . . . Heat Transferred 300 | . 100 200 Parts Sabotaged . | . . . Parts Stolen . | . . . Parts Stripped . | . . . Power Chain Reactions . | . . . Alert | -11 -10 -10 ------- Run | Yrd Mat Sub Maximum Alert Level . | . . . Low Security (%) 100 | 100 100 . Level 1 . | . . . Level 2 . | . . . Level 3 . | . . . Level 4 . | . . . Level 5 . | . . . High Security . | . . . Max Security . | . . . Peak Influence 80 | 5 80 . Initial . | . . . Average 14 | 1 16 . Influence Increases 368 | 25 298 45 Destroy 0b10 Robot/C 180 | . 160 20 Destroy 0b10 Robot/NC 60 | 25 35 . Destroy Leader 46 | . 36 10 Successful Hack 37 | . 37 . Lose Combat Pursuer 45 | . 30 15 Influence Decreases 337 | 25 298 14 Time Decay 276 | 25 247 4 Lost Part 30 | . 20 10 Purge Threat 31 | . 31 . Squads Dispatched . | . . . Investigation . | . . . Extermination . | . . . Reinforcement . | . . . Assault . | . . . Garrison . | . . . Intercept . | . . . Searches Triggered . | . . . Construction Impeded . | . . . Haulers Reinforced . | . . . Active Scanning Responses . | . . . Cargo Convoy Interrupts . | . . . Stealth | -11 -10 -10 --------- Run | Yrd Mat Sub Distress Signals 3 | . 3 . Communications Jammed . | . . . Distress Signals . | . . . Times Spotted 26 | . 18 8 Peak Tracking Total 5 | . 5 2 Tactical Retreats 3 | . 2 1 Traps | -11 -10 -10 ------- Run | Yrd Mat Sub Traps Triggered . | . . . Indirectly . | . . . Trap Hack Attempts . | . . . Triggered . | . . . Disarmed . | . . . Reprogrammed . | . . . Reused . | . . . Traps Extracted . | . . . Installed . | . . . Triggered . | . . . Machines | -11 -10 -10 ---------- Run | Yrd Mat Sub Machines Disabled . | . . . Max in Single Turn . | . . . Machines Repaired . | . . . Machines Dismantled . | . . . Machines Sabotaged . | . . . Overloaded Fab Kills . | . . . Hacking | -11 -10 -10 --------- Run | Yrd Mat Sub Machines Accessed 9 | . 8 1 Terminals 8 | . 8 . Fabricators . | . . . Repair Stations . | . . . Recycling Units . | . . . Scanalyzers . | . . . Garrison Access . | . . . Total Hacks 28 | . 24 4 Successful 16 | . 12 4 Failed 12 | . 12 . Catastrophic 1 | . 1 . Database Lockouts . | . . . Manual 22 | . 22 . Terminals 24 | . 24 . Fabricators . | . . . Repair Stations . | . . . Recycling Units . | . . . Scanalyzers . | . . . Garrison Access . | . . . Terminal Hacks 7 | . 3 4 Record 4 | . . 4 Robot Analysis 1 | . 1 . Unreport Threat 1 | . 1 . Locate Traps 1 | . 1 . Fabricator Hacks . | . . . Repair Station Hacks . | . . . Recycling Unit Hacks . | . . . Scanalyzer . | . . . Garrison Access Hacks . | . . . Unauthorized Hacks 9 | . 9 . Terminals 9 | . 9 . Track 3 | . 3 . Botnet 5 | . 5 . Disrupt 1 | . 1 . Fabricators . | . . . Repair Stations . | . . . Recycling Units . | . . . Scanalyzers . | . . . Garrison Access . | . . . Data Cores Recovered . | . . . Used . | . . . Hacking Detections 8 | . 8 . Full Trace Events . | . . . Feedback Events . | . . . Feedback Blocked . | . . . Robot Schematics Acquired . | . . . Robots Built . | . . . Authchips . | . . . Time . | . . . Total Robot Build Rating . | . . . Part Schematics Acquired . | . . . Parts Built . | . . . Authchips . | . . . Time . | . . . Total Part Build Rating . | . . . Parts Repaired . | . . . Time . | . . . Parts Recycled . | . . . Recycled Matter . | . . . Retrieved Matter . | . . . Retrieved Components . | . . . Parts Scanalyzed . | . . . Part Schematics Acquired . | . . . Parts Damaged . | . . . Bothacking | -11 -10 -10 ------------ Run | Yrd Mat Sub Used RIF Installer . | . . . Robots Hacked . | . . . Non-combat . | . . . Combat . | . . . Robot Hacks Applied . | . . . Relay Couplers Released . | . . . Fabnet Peak Effective % . | . . . Robots Rewired . | . . . Allies Hacked . | . . . Hacks Repelled . | . . . Allies | -11 -10 -10 -------- Run | Yrd Mat Sub Total Allies . | . . . Largest Group . | . . . Highest-Rated Group . | . . . Highest-Rated Ally . | . . . Total Orders . | . . . Ally Attacks . | . . . Total Damage . | . . . Kills . | . . . Allies Corrupted . | . . . Allies Melted . | . . . Intel | -11 -10 -10 ------- Run | Yrd Mat Sub Active Infowar (turns) 3149 | 88 255 2806 Structural 2964 | . 158 2806 Seismic 185 | 88 97 . Robot Analysis Total 1 | . 1 . Derelict Logs Recovered . | . . . Drone Launches . | . . . Drone Recoveries . | . . . Exploration | -11 -10 -10 ------------- Run | Yrd Mat Sub Turns Passed 5033 | 132 1044 3857 Spaces Moved 1121 | 78 545 498 Core 237 | 14 . 223 Treads . | . . . Legs . | . . . Wheels 884 | 64 545 275 Hover . | . . . Flight . | . . . Fastest Speed 50 | 50 80 130 Average Speed 396 | 86 137 728 Slowest Speed 1500 | 200 140 1500 Overloaded Moves . | . . . Propulsion Burnouts . | . . . Robots Hopped . | . . . Potential Cave-ins . | . . . Cave-ins Triggered . | . . . Exploration Rate (%) 42 | 4 92 32 Regions Visited 2 Branch Regions 1 Pre-discovered Areas 1 | . . 1 Known Exits Taken . | . . . Unknown Exits Taken 2 | 1 1 . Scrap Searched . | . . . Spaces Dug . | . . . Terrain Destroyed . | . . . Melee . | . . . Projectile . | . . . AOE . | . . . Terrain Rammed . | . . . Walls Destroyed . | . . . Machines Disabled . | . . . Actions | -11 -10 -10 --------- Run | Yrd Mat Sub Total 1474 | 113 764 597 Wait 145 | . 142 3 Move 1119 | 77 544 498 Hop . | . . . Pick Up 38 | 11 15 12 Fast Attach 3 | 3 . . Attach 18 | 4 3 11 Detach . | . . . Swap 17 | 2 6 9 Drop 9 | 1 7 1 Fire 125 | 15 47 63 Melee . | . . . Ram . | . . . Kick . | . . . Crush . | . . . Escape Stasis . | . . . Rewire . | . . . Trap . | . . . Miscellaneous . | . . . Route ------- -11/Scrapyard -10/Materials (discovered 5 exits: [*Mat x3] / [*Min] / *Sub) -10/Subcaves (discovered 1 exit: [*Mat]) History --------- Turn | Location | Event 18 | -11/Scrapyard | Discovered new exit (range 15) 133 | -11/Scrapyard | Entered Materials 203 | -10/Materials | Discovered new exit (range 4) 308 | -10/Materials | Build established: Mutant 569 | -10/Materials | Discovered new exit (range 14) 683 | -10/Materials | Discovered new exit (range 8) 838 | -10/Materials | Discovered new exit (range 9) 1106 | -10/Materials | Discovered new exit (range 11) 1177 | -10/Materials | Entered Subcaves 1177 | -10/Subcaves | Discovered new exit (range 9) 1267 | -10/Subcaves | Lost 3 parts (2n1w) 1276 | -10/Subcaves | Core integrity fell below 50% 1308 | -10/Subcaves | Lost 4 parts (1p2n1w) 1969 | -10/Subcaves | A swath of the cavern ceiling suddenly collapsed 3937 | -10/Subcaves | Visited Clippyterm 3981 | -10/Subcaves | Learned location of Extension (-4) 4935 | -10/Subcaves | Core integrity fell below 20% 5017 | -10/Subcaves | Disturbed a concealed Subdweller 5034 | -10/Subcaves | Destroyed by 8Z-85D(R) with Subdweller Machine Gun Last Messages --------------- 04831_ 5L-W6Q(R) destroyed. 04833_ Subatomizers dissect the Sub. Monowheel. 04848_ Acquired Sub. Monowheel. 04849_ Acquired 54 matter. 04851_ Acquired Sub. Optics. 04853_ Acquired Sub. Power Source. 04855_ Subatomizers dissect the Disposable Heat Sink. 04904_ Acquired Sub. Machine Gun. 04926_ Lgt. Ion Engine destroyed. 04940_ Sub. Monowheel destroyed. 04944_ G-47 Trooper suffers critical hit (Destroy). 04944_ Destroyed Aluminum Leg. 04944_ Critical hit (Burn: +37). 04947_ G-47 Trooper destroyed. 04961_ Acquired 39 matter. 05006_ Acquired 12 matter. 05014_ Acquired 11 matter. 05026_ Sub. Machine Gun destroyed. Map ----- +----------------------------------------------------+ | ?????????????????????????????????????????????? | | ?????????????????????????????????????????????? | | ?????????????????????????????????????????????? | | ?????????????????????????????????????????????? | | ?????????????????????????????????????????????? | | ?????????????????????????????????????????????? | | ?????????????????????????????????????????????? | | ?????????????????????????????????????????????? | | ?????????????????????????????????????????????? | | ?????????????????????????????????????????????? | | ?????????????????????????????????????????????? | | ?????????????????????????????####????????????? | | ?????????????????????????????####????????????? | | ????????????????????????????? ##????????????? | | ????????????????????????????? ##????????????? | | ????????????????????????????? ##????????????? | | ???????????????????????????? ##????????????? | | ????????????????????????????% ##????????????? | | ???????????????????????????? ##?????????????? | | ??????????????????????????? ##?????????????? | | ?????????????????????###### ###????????????? | | ????????????????????####### ###????????????? | | ????????????????????### % ##????????????? | | ????????????????????## ##????????????? | | ????????????????????## % ?????????????????? | | ???????????????????### @##?????????????????? | | ???????????????????### ##?????????????????? | | ???????????????????## ###?????????????????? | | ???????????????????#### ##?????????????????? | | ???????????????????#### ###?????????????????? | | ????????????????????### ###?????????????????? | | ????????????????????## R ##??????????????????? | | ?????????????######### ####????????????????? | | ?????????????######### ######???????????????? | | ?????????????##"& ##" ####??????????????? | | ?????????????## # # ###??????????????? | | ??????????????? ##"#< # ##??????????????? | | ??????????????? ### # ##??????????????? | | ???????????????? ## ##??????????????? | | ?????????????????##### % ##??????????????? | | ?????????????????##### ## ##??????????????? | | ????######????????### ### ##??????????????? | | ????##### ????????## ########??????????????? | | ????# ???????? ## ########??????????????? | | ????? ???????? ## #######????????????? | | ????# ? ######?#### ######????????????? | | ???### ? ####### ###### ## ##????????????? | | ???### ?### # ## ##????????????? | | ???## ### ##????????????? | | ???## #### ####### ###????????????? | +----------------------------------------------------+ Best States ------------- Heat Dissipation 39 Energy Generation 10 Energy Capacity 200 Matter Stores 300 Matter Capacity 300 Sight Range 16 Terrain Scan Density 10 Armor Coverage 150 Evasion (%) 44 Item Schematics ----------------- None Robot Schematics ------------------ None Fabricated ------------ Nothing Repaired ---------- Nothing Alien Tech Used ----------------- None Achievements -------------- None Challenges ------------ None Game ------ Seed GravityNuclearReplicator Manual? 0 Play Time 00:19:12 Cumulative 356.0 hours Start 2025.06.03 @ 13:36:11 End 2025.06.03 @ 13:54:16 Sessions 1 Manual Loads 0 Difficulty Rogue Special Mode None Game No. 399 Rogue 399 Adventurer 0 Explorer 0 Win Type - Total 6 Types 3/1/1/1/0/0/0/0/0/0 Lore% 57 Gallery% 69 Achievement% 68 Wizard Run 0 Options --------- Layout 1 ASCII 0 Keyboard 0 Movement Numpad Keybinds 0 Fullscreen 1 Font 32/SmallcapsGlow Map View 50x35 Zoom Use 0% Tactical HUD 1 Map Filters NONE Filters NONE Steam 1 RUN: a56169af-5321-4a39-8d1f-1873847c4cd2